Cogmind - Beta 13 @@@ ROGUE MODE // 2024.05.01 @ 21:12:41 Player: luckinvolved Result: Destroyed by Y-72 Warden with Railgun Performance ------------- Evolutions (7) 3500 Regions Visited (23) 4600 Robots Destroyed (238) 1190 Value Destroyed (13002) 13002 Prototype IDs (26) 520 Alien Tech Used (2) 400 Bonus (6869) 6869 TOTAL SCORE: 30081 Bonus ------- High Alert Combat Kills 2684 Follower Combat Kills 729 Entered Garrisons 600 Used RIF Installer 2500 Aligned with FarCom 300 Met Zhirov 300 Friendly Fire -244 Cogmind --------- Core Integrity 0/1300 Matter 10/300 Energy 99/100 System Corruption 0% Temperature Cool (0) Movement Core (50) Location -3/Armory Parts ------- > --- POWER (2) -------- (None) > --- PROPULSION (6) --- (None) > --- UTILITY (10) ----- Experimental Weapon Shielding > --- WEAPON (3) ------- (None) > --- INVENTORY (5) ---- Micro Antimatter Reactor Large Storage Unit Recoil Nullifier Heavy Beamcaster Improved Remote Datajack Peak State ------------ > --- POWER ------------ Particle Reactor Particle Reactor > --- PROPULSION ------- Armored Heavy Treads Improved Heavy Siege Treads > --- UTILITY ---------- Advanced Cooling System Large Storage Unit Gravity Neutralizer Advanced Weapon Cycler Layered Heavy Armor Plating Medium Reflective Plating Improved Focal Shield Force Field Long-range Tractor Beam > --- WEAPON ----------- Heavy Mass Driver Enhanced Gauss Cannon > --- INVENTORY -------- Micro Antimatter Reactor Armored Medium Treads Biometal Medium Treads Advanced Hacking Suite Relay Coupler [Hunter] Relay Coupler [Heavy] Force Rifle Quantum Rifle Cooled Particle Cannon Heavy Mass Driver Enhanced Gauss Cannon Micro-nuke Launcher Remote Datajack Lance [Rating: 126] Favorites ----------- Power Particle Reactor Engine Reinforced Deuterium Engine Power Core Neutrino Core Reactor Particle Reactor Propulsion Light Treads Treads Light Treads Leg Myomer Leg Hover Unit Improved Antigrav System Flight Unit Improved Cesium-ion Thruster Utility Large Storage Unit Device Improved Heat Sink Storage Large Storage Unit Processor Improved Corruption Screen Hackware Relay Coupler [Grunt] Protection Improved Medium Armor Plating Weapon KE Penetrator Energy Gun Medium Laser Energy Cannon Cooled Particle Cannon Ballistic Gun KE Penetrator Ballistic Cannon Heavy Mass Driver Launcher Micro-nuke Launcher Special Weapon Improved Remote Datajack Impact Weapon Hammer Piercing Weapon Lance Build | -11 -10 -10 -10 -9 -8 -8 -8 -7 -7 -7 -7 -6 -6 -5 -4 -4 -4 -4 -4 -4 -3 -3 -3 ------- Run | Yrd Mat Min Exi Min Mat Gar Mat Fac Gar Fac Sto Fac Gar Fac Fac Was Fac Upp Upp Zhi Pro Res Arm Slots Evolved 14 | . . . . . 4 . . 2 . . . 2 . 2 2 . . . . . . 2 . Power 1 | . . . . . . . . . . . . . . 1 . . . . . . . . . Propulsion 4 | . . . . . 1 . . . . . . 1 . . . . . . . . . 2 . Utility 8 | . . . . . 2 . . 2 . . . 1 . 1 2 . . . . . . . . Weapon 1 | . . . . . 1 . . . . . . . . . . . . . . . . . . Parts Attached 300 | 8 1 1 2 . 13 29 3 14 39 15 21 23 46 18 21 6 2 18 2 4 6 8 . Power 33 | 1 . 1 . . 2 5 . . 4 2 1 2 3 2 3 1 . 2 1 1 1 1 . Engine 15 | 1 . 1 . . 2 2 . . 3 2 1 2 . . . . . . . . 1 . . Core 4 | . . . . . . 3 . . . . . . . . . . . . 1 . . . . Reactor 14 | . . . . . . . . . 1 . . . 3 2 3 1 . 2 . 1 . 1 . Propulsion 51 | 4 . . . . 4 5 1 1 4 4 4 4 3 2 2 2 . 4 . 1 3 3 . Treads 43 | 2 . . . . 4 5 1 1 4 3 4 4 3 2 2 2 . 4 . . 2 . . Leg 5 | 2 . . . . . . . . . . . . . . . . . . . . . 3 . Wheel . | . . . . . . . . . . . . . . . . . . . . . . . . Hover 2 | . . . . . . . . . . . . . . . . . . . . 1 1 . . Flight 1 | . . . . . . . . . . 1 . . . . . . . . . . . . . Utility 110 | 1 1 . 2 . 4 5 1 5 20 6 8 5 21 10 8 . . 7 . 2 1 3 . Device 36 | . . . . . 1 1 . 1 3 . 4 2 10 4 3 . . 4 . 1 . 2 . Storage 8 | 1 1 . 1 . . . . . 1 1 1 . . . . . . 1 . . . 1 . Processor 11 | . . . 1 . 2 . . 1 1 1 . . 1 1 . . . 2 . . 1 . . Hackware 21 | . . . . . . . 1 1 6 1 . 2 9 . 1 . . . . . . . . Protection 34 | . . . . . 1 4 . 2 9 3 3 1 1 5 4 . . . . 1 . . . Artifact . | . . . . . . . . . . . . . . . . . . . . . . . . Weapon 106 | 2 . . . . 3 14 1 8 11 3 8 12 19 4 8 3 2 5 1 . 1 1 . Energy Gun 21 | 1 . . . . . 5 . . . 1 1 2 4 . 3 . . 3 1 . . . . Energy Cannon 6 | . . . . . . 1 . . . . 1 2 1 . . 1 . . . . . . . Ballistic Gun 33 | 1 . . . . 2 6 . 5 3 2 2 5 6 . . . 1 . . . . . . Ballistic Cannon 11 | . . . . . 1 . . . 5 . . . 1 1 3 . . . . . . . . Launcher 8 | . . . . . . . . . . . 1 . . 2 1 2 . 2 . . . . . Special Weapon 17 | . . . . . . 1 . . 3 . 1 1 7 1 1 . . . . . 1 1 . Impact Weapon 6 | . . . . . . 1 1 3 . . 1 . . . . . . . . . . . . Slashing Weapon . | . . . . . . . . . . . . . . . . . . . . . . . . Piercing Weapon 4 | . . . . . . . . . . . 1 2 . . . . 1 . . . . . . Special Melee Weapon . | . . . . . . . . . . . . . . . . . . . . . . . . Unidentified Prototypes 17 | . . . 1 . 1 . . 1 . 3 2 1 . . 1 . . . . 4 1 2 . Parts Lost 99 | . . 1 . . 2 16 . 2 12 4 10 1 8 2 18 . . 6 2 . 11 4 . Power 16 | . . 1 . . 1 3 . . 1 1 2 . . . 2 . . 2 . . 3 . . Propulsion 22 | . . . . . 1 5 . . 2 1 2 . 1 . 3 . . 1 1 . 5 . . Utility 42 | . . . . . . 3 . 2 7 1 3 1 6 2 9 . . 1 . . 3 4 . Weapon 19 | . . . . . . 5 . . 2 1 3 . 1 . 4 . . 2 1 . . . . Highest Loss Streak 13 | . . 1 . . 1 4 . 1 6 2 5 1 3 2 13 . . 3 2 . 6 3 . To Critical Strikes 1 | . . . . . . . . . . . . . 1 . . . . . . . . . . Average Slot Usage (%) 81 | . 85 85 92 100 96 97 99 97 87 90 87 92 78 78 70 10 12 47 57 62 61 21 4 Engine 4 | . 14 14 14 14 8 6 9 7 5 6 7 6 . . . . . . . . . . . Reactor 2 | . . . . . . . . . 1 . . . 5 11 9 . . 4 . 3 4 . . Treads 17 | . 28 28 28 28 26 26 27 23 14 14 15 26 14 11 10 9 10 13 14 10 8 . . Device 10 | . . . . . 5 6 9 8 8 . 6 5 17 20 25 . . 9 15 19 16 4 . Storage 6 | . 14 14 14 14 9 9 9 7 7 7 7 6 6 5 4 . . 1 5 5 2 . . Processor 4 | . . . 7 14 15 8 . 2 2 7 7 6 . 1 . . . 4 10 10 8 7 . Hackware 6 | . . . . . . . 4 12 11 19 13 12 7 5 . . . . . . . . . Protection 7 | . . . . . 3 11 13 9 13 8 5 6 5 7 8 . . . . 3 5 4 4 Energy Gun 3 | . 14 14 14 14 9 8 . . . . 1 . 4 . . . . 4 . . . . . Ballistic Gun 8 | . 14 14 14 14 9 16 15 11 9 17 13 13 8 . . . . . . . . . . Ballistic Cannon 2 | . . . . . 8 . . . 7 4 . . . 7 8 . . . . . . . . Special Weapon 1 | . . . . . . . 9 7 2 . . . 1 2 . . . . . . 4 . . Naked Turns 11 | . . . . . . . . . . . . . . . 5 6 . . . . . . . Heaviest Build 132 | 11 16 16 26 26 46 65 64 65 97 59 66 68 104 132 132 11 3 74 70 70 74 11 1 Greatest Support 135 | 40 40 40 40 40 63 63 60 60 105 103 103 98 135 135 135 3 3 77 77 54 55 60 3 Greatest Overweight (x) 4 | 3 . . . . 1 1 1 1 1 . . . 1 1 1 3 . 4 . 1 2 1 . Average Overweight (x) . | . . . . . . . . . . . . . . . . . . . . . . . . Largest Inventory Capacity 15 | 8 10 10 15 15 15 15 15 15 15 15 15 15 15 15 15 5 5 15 15 15 15 5 5 Average Capacity 14 | 7 8 10 10 15 15 15 15 15 15 15 15 15 15 15 14 5 5 7 15 15 10 5 5 Most Carried 15 | 6 7 5 6 8 15 15 15 15 15 15 15 15 15 15 15 5 5 5 5 6 15 5 5 Average Carried 12 | 3 5 4 5 5 13 14 14 14 13 14 14 13 14 14 13 3 4 4 4 5 6 4 5 Final Capacity 15 | 8 10 10 15 15 15 15 15 15 15 15 15 15 15 15 5 5 5 15 15 15 5 5 5 Final Carried 15 | 6 5 5 5 8 15 15 15 15 15 15 14 15 15 15 5 5 5 4 5 6 5 5 5 Class Distribution -------------------- 20% | Tank 17% | Mutant 16% | Skirmisher 12% | Scavenger-Skirmisher 11% | Bothacker-Tank 7% | Derelict-Mutant 3% | Scavenger-Tank 3% | Scavenger-Mutant 3% | Bothacker-Skirmisher Dominant Class ---------------- Mutant | -10/Materials Mutant | -10/Mines Mutant | -10/Exiles Mutant | -9/Mines Skirmisher | -8/Materials Scavenger-Skirmisher | -8/Garrison Bothacker-Tank | -8/Materials Bothacker-Skirmisher | -7/Factory Bothacker-Tank | -7/Garrison Skirmisher | -7/Factory Mutant | -7/Storage Mutant | -6/Factory Tank | -6/Garrison Tank | -5/Factory Tank | -4/Factory Mutant | -4/Waste Mutant | -4/Factory Derelict-Mutant | -4/Upper Caves Derelict-Mutant | -4/Upper Caves Derelict-Mutant | -4/Zhirov Derelict-Mutant | -3/Proximity Caves Mutant | -3/Research Mutant | -3/Armory Resources | -11 -10 -10 -10 -9 -8 -8 -8 -7 -7 -7 -7 -6 -6 -5 -4 -4 -4 -4 -4 -4 -3 -3 -3 ----------- Run | Yrd Mat Min Exi Min Mat Gar Mat Fac Gar Fac Sto Fac Gar Fac Fac Was Fac Upp Upp Zhi Pro Res Arm Matter Collected 9090 | 262 200 51 . 20 579 709 46 . 1794 455 670 455 1128 941 1099 111 . 367 111 . 91 1 . Remotely 1043 | . . . . . . . . . . . . . . . 1043 . . . . . . . . Salvage Created 9514 | . 100 15 . . 1048 1281 46 45 993 464 1280 414 1314 722 915 426 . 429 . . 22 . . Parts 386 | . 10 . . . 48 53 3 3 42 26 55 23 46 26 40 . . 8 . . 3 . . Haulers Intercepted 2 | . . . . . 1 . . . . . . . . 1 . . . . . . . . . Recyclers Shooed 5 | . . 1 . . 1 . . . . 1 2 . . . . . . . . . . . . Parts Field Recycled . | . . . . . . . . . . . . . . . . . . . . . . . . Retrieved Matter . | . . . . . . . . . . . . . . . . . . . . . . . . Parts Self-Destructed 6 | . . . . . . . . . . . . . . . . . . 2 . . 4 . . Prevented 11 | . . . . . . . . . . . . . . . . . . 3 . . 8 . . Kills | -11 -10 -10 -10 -9 -8 -8 -8 -7 -7 -7 -7 -6 -6 -5 -4 -4 -4 -4 -4 -4 -3 -3 -3 ------- Run | Yrd Mat Min Exi Min Mat Gar Mat Fac Gar Fac Sto Fac Gar Fac Fac Was Fac Upp Upp Zhi Pro Res Arm Combat Hostiles Destroyed 210 | . 3 . . . 24 26 1 1 29 8 22 8 29 19 23 2 . 15 . . . . . Melee 2 | . . . . . . . . . . . 1 . . . . . . 1 . . . . . Guns 121 | . 3 . . . 18 26 1 1 14 8 18 6 24 . 1 . . 1 . . . . . Cannons 58 | . . . . . 6 . . . 15 . . 2 3 15 17 . . . . . . . . AOE 26 | . . . . . . . . . . . 2 . . 4 5 2 . 13 . . . . . Classes Destroyed 21 | . 2 . . . 8 1 1 . 3 . 1 . 1 2 . 1 . . . . 1 . . Worker 3 | . . . . . 1 . . . . 1 . . . . 1 . . . . . . . . Builder 7 | . . . . . . . . . . . 3 . . . 4 . . . . . . . . Tunneler 1 | . . . . . 1 . . . . . . . . . . . . . . . . . . Hauler 2 | . . . . . 1 . . . . . . . . 1 . . . . . . . . . Recycler 7 | . . . . . 1 . . . . . 4 . . 1 1 . . . . . . . . Minesweeper 1 | . . . . . . . . . . . . . . . . . . . . . 1 . . Operator 2 | . . . . . 1 . . . . . . . . . 1 . . . . . . . . Watcher 5 | . . . . . 1 . . . . 1 . 1 . . 2 . . . . . . . . Swarmer 26 | . 1 . . . 7 . . . 4 . 3 . 5 5 . . . 1 . . . . . Cutter 4 | . . . . . . . . . . . . . 4 . . . . . . . . . . Saboteur 2 | . . . . . . . . . . . . . . 1 1 . . . . . . . . Grunt 96 | . 2 . . . 11 19 . . 9 3 14 5 6 7 10 . . 10 . . . . . Brawler 9 | . . . . . . . 1 . . . 1 . 5 . 2 . . . . . . . . Duelist 9 | . . . . . . . . . 1 . . . 2 1 2 . . 3 . . . . . Protector 1 | . . . . . . . . . . . . . . 1 . . . . . . . . . Sentry 27 | . . . . . 5 3 . . 7 2 2 2 1 2 2 . . 1 . . . . . Specialist 3 | . . . . . . . . . 3 . . . . . . . . . . . . . . Hunter 15 | . . . . . 1 3 . 1 2 1 1 . 4 . 2 . . . . . . . . Programmer 14 | . . . . . . . . . 2 2 1 1 2 2 4 . . . . . . . . Behemoth 2 | . . . . . . 1 . . 1 . . . . . . . . . . . . . . Compactor 2 | . . . . . . . . . . . . . . . . 2 . . . . . . . Best Kill Streak 11 | . 3 . . . 8 3 1 1 3 3 11 3 7 5 8 1 . 9 . . 1 . . Combat Bots Only 9 | . 3 . . . 8 3 1 1 3 2 9 3 7 5 6 1 . 9 . . . . . Max Kills in Single Turn 4 | . 1 . . . 2 2 1 1 1 1 2 1 2 4 3 1 . 4 . . 1 . . Gunslinging 1 | . . . . . . 1 . . . . . . 1 . . . . . . . . . . Exploded 4 | . . . . . . . . . . . 1 . . 4 2 1 . 4 . . . . . Melee 1 | . . . . . . . . . . . 1 . . . . . . 1 . . . . . Uniques/NPCs Destroyed . | . . . . . . . . . . . . . . . . . . . . . . . . Combat | -11 -10 -10 -10 -9 -8 -8 -8 -7 -7 -7 -7 -6 -6 -5 -4 -4 -4 -4 -4 -4 -3 -3 -3 -------- Run | Yrd Mat Min Exi Min Mat Gar Mat Fac Gar Fac Sto Fac Gar Fac Fac Was Fac Upp Upp Zhi Pro Res Arm Hostile Shots Fired 2433 | . 13 1 . . 116 164 4 15 686 95 165 128 327 60 368 1 . 72 30 . 74 106 8 Missed 742 | . 4 . . . 28 39 . 4 259 30 36 45 73 11 102 . . 29 5 . 26 50 1 Damage Taken 22515 | . 99 31 . . 1126 2354 67 369 3308 761 1668 925 2987 724 3857 35 . 998 512 . 1077 1420 197 Core 3647 | . . 6 . . 183 318 20 80 297 108 102 63 145 74 456 . . 112 66 . 303 1117 197 Absorbed by Shields 3076 | . . . . . . . . 16 863 . . . 1361 186 590 . . 60 . . . . . Reduced by Siege Mode 335 | . . . . . . . . . 5 . 11 . 128 36 155 . . . . . . . . Redirected to Shielding 100 | . . . . . . . . . . . . . . . 14 . . . . . 52 34 . Ignored by Resistances 1326 | . . . . . . . . . 410 . . . . 86 830 . . . . . . . . Core Remaining (%) 57 | 100 . . . 97 . . 5 . . . 16 . 75 92 . . . . . . 14 . . Volleys Fired 604 | . 8 10 . . 64 66 4 8 109 29 40 20 112 47 62 7 . 15 3 . . . . Largest 3 | . 2 2 . . 3 3 1 2 3 3 3 3 3 2 3 1 . 1 2 . . . . Hottest 231 | . 70 70 . . 127 156 33 66 140 94 141 90 214 132 231 49 . 65 130 . . . . Shots Fired 1307 | . 16 20 . . 192 195 4 12 209 68 94 48 227 75 120 7 . 16 4 . . . . Gun 878 | . 16 20 . . 128 194 2 8 111 68 91 42 185 . 9 . . 1 3 . . . . Cannon 355 | . . . . . 64 1 . . 83 . 1 3 28 70 105 . . . . . . . . Launcher 30 | . . . . . . . . . . . 2 . . 1 4 7 . 15 1 . . . . Special 44 | . . . . . . . 2 4 15 . . 3 14 4 2 . . . . . . . . Kinetic 980 | . 8 10 . . 128 125 2 8 194 68 80 41 141 70 105 . . . . . . . . Thermal 252 | . 8 10 . . 64 70 . . . . 12 3 72 . 9 . . 1 3 . . . . Explosive 30 | . . . . . . . . . . . 2 . . 1 4 7 . 15 1 . . . . Electromagnetic 1 | . . . . . . . . . . . . 1 . . . . . . . . . . . Robot Hit Streak 42 | . 7 3 . . 13 19 2 9 13 16 16 10 42 23 35 3 . 5 5 . . . . Robot Miss Streak 6 | . 3 2 . . 3 3 1 2 3 5 6 5 5 4 5 2 . 4 1 . . . . Penetration Max 1 | . . . . . . 1 . . 1 1 1 . 1 . 1 . . . . . . . . Secondary Targets 19 | . . . . . . 8 . . . . 3 2 6 . . . . . . . . . . Max Gunslinging Chain 2 | . . . . . . 2 . . . . 1 1 2 . . . . . . . . . . Shots Hit Robots 936 | . 11 10 . . 122 132 2 8 135 47 80 40 179 50 101 3 . 11 3 . 2 . . Core Hits 522 | . 5 6 . . 50 59 1 2 44 25 78 32 99 32 41 6 . 39 2 . 1 . . Critical Kills 2 | . . . . . . 2 . . . . . . . . . . . . . . . . . Critical Parts Destroyed 14 | . . 1 . . 1 . . 1 5 2 2 . 2 . . . . . . . . . . Critical Strikes 52 | . . 2 . . 7 7 . 1 11 2 2 . 2 6 12 . . . . . . . . Burn 11 | . . 1 . . 5 5 . . . . . . . . . . . . . . . . . Destroy 16 | . . 1 . . 1 2 . 1 6 2 1 . 2 . . . . . . . . . . Blast 24 | . . . . . 1 . . . 5 . . . . 6 12 . . . . . . . . Smash 1 | . . . . . . . . . . . 1 . . . . . . . . . . . . Melee Attacks 77 | . . . . . . . 4 6 . . 14 33 . . . . 4 9 5 . 2 . . Impact 23 | . . . . . . . 4 6 . . 13 . . . . . . . . . . . . Slashing . | . . . . . . . . . . . . . . . . . . . . . . . . Piercing 54 | . . . . . . . . . . . 1 33 . . . . 4 9 5 . 2 . . Sneak Attacks 4 | . . . . . . . . . . . 3 . . . . . . . . . 1 . . Combat Hostiles . | . . . . . . . . . . . . . . . . . . . . . . . . Follow-up Attacks . | . . . . . . . . . . . . . . . . . . . . . . . . Damage Inflicted 32290 | . 136 127 . . 2375 2325 23 79 4592 1248 2508 786 4424 2960 6127 1268 . 2955 243 . 114 . . Guns 13539 | . 136 127 . . 1517 2325 23 79 1953 1140 1887 700 3365 . 210 . . 32 45 . . . . Cannons 11731 | . . . . . 858 . . . 2639 . . 86 1059 2489 4600 . . . . . . . . Explosions 6458 | . . . . . . . . . . 108 261 . . 471 1317 1268 . 2835 198 . . . . Melee 562 | . . . . . . . . . . . 360 . . . . . . 88 . . 114 . . Ramming . | . . . . . . . . . . . . . . . . . . . . . . . . Kinetic 21180 | . 47 51 . . 1732 1575 23 79 4592 1140 1662 700 2490 2489 4600 . . . . . . . . Thermal 4680 | . 89 76 . . 643 750 . . . . 225 86 1934 . 800 . . 32 45 . . . . Explosive 5868 | . . . . . . . . . . 108 261 . . 471 727 1268 . 2835 198 . . . . Electromagnetic . | . . . . . . . . . . . . . . . . . . . . . . . . Impact 360 | . . . . . . . . . . . 360 . . . . . . . . . . . . Slashing . | . . . . . . . . . . . . . . . . . . . . . . . . Piercing 202 | . . . . . . . . . . . . . . . . . . 88 . . 114 . . Highest Corruption 11 | . . . . . . . . . 3 3 3 . 4 1 10 10 10 10 10 10 11 . . Average Corruption 5 | . . . . . . . . . 2 3 3 . 3 1 7 10 10 10 10 10 10 . . Corruption Purged . | . . . . . . . . . . . . . . . . . . . . . . . . Corruption Blocked 3 | . . . . . . . . . 3 . . . . . . . . . . . . . . Effects 182 | . . . . . . . . . 15 20 14 . 40 2 12 4 7 20 14 17 17 . . Message Errors 40 | . . . . . . . . . . 4 3 . 10 . 4 1 4 5 4 2 3 . . Matter Fused 42 | . . . . . . . . . 6 7 3 . 11 1 1 2 1 . 3 4 3 . . Heat Flow Errors 19 | . . . . . . . . . 1 2 3 . 3 . 2 . . 4 2 1 1 . . Energy Discharges 31 | . . . . . . . . . 3 3 1 . 7 . 1 . 2 4 4 3 3 . . Parts Rejected 6 | . . . . . . . . . . 1 1 . 1 . 1 . . 1 . . 1 . . Data Loss (minor) 23 | . . . . . . . . . 2 1 2 . 6 1 . 1 . 3 . 4 3 . . Data Loss (major) 9 | . . . . . . . . . 1 . . . 1 . 1 . . 1 1 2 2 . . Misfires 4 | . . . . . . . . . 1 1 . . 1 . . . . 1 . . . . . Alerts 3 | . . . . . . . . . 1 . . . . . . . . . . 1 1 . . Misdirections 2 | . . . . . . . . . . . . . . . 1 . . 1 . . . . . Weapon Failures 3 | . . . . . . . . . . 1 1 . . . 1 . . . . . . . . Overload Shots 17 | . . . . . . . . . . . . . 17 . . . . . . . . . . Effects 1 | . . . . . . . . . . . . . 1 . . . . . . . . . . Heat Surge 1 | . . . . . . . . . . . . . 1 . . . . . . . . . . Overflow Damage 1570 | . . . . . 3 30 . . 257 . 197 . 41 214 616 . . 212 . . . . . Projectiles 958 | . . . . . 3 . . . 257 . . . 41 83 574 . . . . . . . . Explosions 394 | . . . . . . 30 . . . . 13 . . 131 42 . . 178 . . . . . Melee 218 | . . . . . . . . . . . 184 . . . . . . 34 . . . . . Knockbacks 68 | . . . . . 7 . . . 14 . 1 . 1 13 32 . . . . . . . . Impact 1 | . . . . . . . . . . . 1 . . . . . . . . . . . . Kinetic 58 | . . . . . 5 . . . 13 . . . 1 13 26 . . . . . . . . Secondary 9 | . . . . . 2 . . . 1 . . . . . 6 . . . . . . . . Self-Inflicted Damage 333 | . . . . . . 106 . . . . . . . 92 75 . . 60 . . . . . Shots 6 | . . . . . . 1 . . . . . . . 2 1 . . 2 . . . . . Rammed . | . . . . . . . . . . . . . . . . . . . . . . . . Targets Rammed . | . . . . . . . . . . . . . . . . . . . . . . . . Kicked . | . . . . . . . . . . . . . . . . . . . . . . . . Crushed . | . . . . . . . . . . . . . . . . . . . . . . . . Highest Temperature 398 | . 130 130 . . 319 390 . . 268 162 314 50 398 331 297 5 . 206 271 105 217 2 . Average Temperature 89 | . 65 55 . . 82 100 . . 52 37 125 30 126 111 83 5 . 78 116 54 100 2 . Received Heat Transfer 5968 | . 54 . . . 477 1240 36 . 831 189 744 252 608 217 505 . . 169 135 . 234 250 27 Effects 7 | . . . . . . 1 . . . . 3 . 3 . . . . . . . . . . Interference 6 | . . . . . . . . . . . 3 . 3 . . . . . . . . . . Short Circuit 1 | . . . . . . 1 . . . . . . . . . . . . . . . . . Siege Activations 22 | . . . . . . . . . 2 . 1 . 4 7 8 . . . . . . . . Total Turns 359 | . . . . . . . . . 7 . 13 . 95 81 163 . . . . . . . . Longest Duration 57 | . . . . . . . . . 5 . 13 . 46 26 57 . . . . . . . . Robots Corrupted . | . . . . . . . . . . . . . . . . . . . . . . . . Combat Hostiles . | . . . . . . . . . . . . . . . . . . . . . . . . Parts Fried 5 | . . . . . . . . . . . 5 . . . . . . . . . . . . Impact Corruptions 7 | . . . . . . . . . . . 7 . . . . . . . . . . . . Robots Melted 2 | . . . . . . . . . . . . . 2 . . . . . . . . . . Combat Hostiles 2 | . . . . . . . . . . . . . 2 . . . . . . . . . . Parts Melted 11 | . . . . . 1 4 . . . . 1 . 4 . 1 . . . . . . . . Heat Transferred 8636 | . 259 296 . . 2257 2220 . . . . 525 111 2161 . 696 . . 37 74 . . . . Parts Sabotaged 1 | . . . . . . . . . . . . . . . 1 . . . . . . . . Parts Stolen . | . . . . . . . . . . . . . . . . . . . . . . . . Parts Stripped . | . . . . . . . . . . . . . . . . . . . . . . . . Power Chain Reactions . | . . . . . . . . . . . . . . . . . . . . . . . . Alert | -11 -10 -10 -10 -9 -8 -8 -8 -7 -7 -7 -7 -6 -6 -5 -4 -4 -4 -4 -4 -4 -3 -3 -3 ------- Run | Yrd Mat Min Exi Min Mat Gar Mat Fac Gar Fac Sto Fac Gar Fac Fac Was Fac Upp Upp Zhi Pro Res Arm Peak Influence 1759 | . 75 28 . . 397 1365 664 278 1759 938 637 299 1725 1364 1095 488 349 . . . . 975 541 Initial 923 | . . 28 . . . 252 664 241 49 923 300 276 68 905 667 360 341 . . . . 900 511 Average 619 | . 16 18 . . 185 813 619 243 730 649 436 165 754 945 782 445 342 . . . . 919 520 Maximum Alert Level 5 | . . . . . 1 4 2 1 5 3 2 1 5 4 3 2 1 . . . . 3 2 Low Security (%) 17 | 100 100 100 . 100 48 . . 6 17 . 2 68 9 . . . . . . . . . . Level 1 20 | . . . . . 51 17 . 93 19 . 28 31 21 . . 22 100 . . . . . . Level 2 21 | . . . . . . 17 100 . 15 82 69 . 14 . 29 77 . . . . . . 100 Level 3 27 | . . . . . . 47 . . 20 17 . . 24 80 70 . . . . . . 100 . Level 4 11 | . . . . . . 17 . . 20 . . . 27 18 . . . . . . . . . Level 5 1 | . . . . . . . . . 6 . . . 2 . . . . . . . . . . High Security . | . . . . . . . . . . . . . . . . . . . . . . . . Max Security . | . . . . . . . . . . . . . . . . . . . . . . . . Squads Dispatched 36 | . 1 . . . 5 . 1 . . 5 5 3 . 7 4 . 2 . . . . 2 1 Investigation 10 | . 1 . . . 2 . . . . 2 . 1 . 1 . . 1 . . . . 1 1 Extermination 8 | . . . . . . . . . . 1 1 2 . 1 1 . 1 . . . . 1 . Reinforcement 5 | . . . . . . . . . . 2 2 . . . 1 . . . . . . . . Assault 8 | . . . . . . . 1 . . . . . . 5 2 . . . . . . . . Garrison 5 | . . . . . 3 . . . . . 2 . . . . . . . . . . . . Intercept . | . . . . . . . . . . . . . . . . . . . . . . . . Searches Triggered . | . . . . . . . . . . . . . . . . . . . . . . . . Construction Impeded 2 | . . . . . . . . . . . 1 . . . 1 . . . . . . . . Haulers Reinforced . | . . . . . . . . . . . . . . . . . . . . . . . . Active Scanning Responses . | . . . . . . . . . . . . . . . . . . . . . . . . Cargo Convoy Interrupts . | . . . . . . . . . . . . . . . . . . . . . . . . Stealth | -11 -10 -10 -10 -9 -8 -8 -8 -7 -7 -7 -7 -6 -6 -5 -4 -4 -4 -4 -4 -4 -3 -3 -3 --------- Run | Yrd Mat Min Exi Min Mat Gar Mat Fac Gar Fac Sto Fac Gar Fac Fac Was Fac Upp Upp Zhi Pro Res Arm Distress Signals 16 | . 2 . . . 3 . . . . 1 3 1 . . 5 . . . . . . 1 . Communications Jammed . | . . . . . . . . . . . . . . . . . . . . . . . . Distress Signals . | . . . . . . . . . . . . . . . . . . . . . . . . Times Spotted 381 | . 10 8 . . 29 32 9 2 49 14 25 14 53 33 46 6 . 14 3 . 17 14 3 Peak Tracking Total 10 | . 4 8 . . 7 10 4 2 5 4 8 6 7 5 9 4 2 7 3 . 7 10 2 Tactical Retreats 18 | . . . . . . 2 2 1 2 1 1 . 2 3 1 . . . 1 . . 2 . Traps | -11 -10 -10 -10 -9 -8 -8 -8 -7 -7 -7 -7 -6 -6 -5 -4 -4 -4 -4 -4 -4 -3 -3 -3 ------- Run | Yrd Mat Min Exi Min Mat Gar Mat Fac Gar Fac Sto Fac Gar Fac Fac Was Fac Upp Upp Zhi Pro Res Arm Traps Triggered 19 | . 1 . . . . 1 . . 6 . . 3 1 4 1 . . . . . . 2 . Indirectly . | . . . . . . . . . . . . . . . . . . . . . . . . Trap Hack Attempts . | . . . . . . . . . . . . . . . . . . . . . . . . Triggered . | . . . . . . . . . . . . . . . . . . . . . . . . Disarmed . | . . . . . . . . . . . . . . . . . . . . . . . . Reprogrammed . | . . . . . . . . . . . . . . . . . . . . . . . . Reused 3 | . . . . . . . . . . . . . . . . . . . . . 2 1 . Traps Extracted . | . . . . . . . . . . . . . . . . . . . . . . . . Installed 6 | . . . . . . . . . . . . . . . . . . . . . 5 1 . Triggered 5 | . . . . . . . . . . . . . . . . . . 2 . . 2 1 . Most Traps Carried 10 | . . . . . . . . . . . . . . . . . . . . . 10 1 . Machines | -11 -10 -10 -10 -9 -8 -8 -8 -7 -7 -7 -7 -6 -6 -5 -4 -4 -4 -4 -4 -4 -3 -3 -3 ---------- Run | Yrd Mat Min Exi Min Mat Gar Mat Fac Gar Fac Sto Fac Gar Fac Fac Was Fac Upp Upp Zhi Pro Res Arm Machines Disabled 31 | . . . . . . 4 . . 4 5 4 . 4 5 4 . . 1 . . . . . Max in Single Turn 4 | . . . . . . 2 . . 1 3 1 . 1 1 4 . . 1 . . . . . Garrison Access 3 | . . . . . . . . . . . 1 1 . 1 . . . . . . . . . Garrison Relay 9 | . . . . . . 2 . . 3 . . . 4 . . . . . . . . . . Phase Generator 2 | . . . . . . 1 . . 1 . . . . . . . . . . . . . . Machines Repaired . | . . . . . . . . . . . . . . . . . . . . . . . . Machines Dismantled . | . . . . . . . . . . . . . . . . . . . . . . . . Machines Sabotaged . | . . . . . . . . . . . . . . . . . . . . . . . . Overloaded Fab Kills . | . . . . . . . . . . . . . . . . . . . . . . . . Hacking | -11 -10 -10 -10 -9 -8 -8 -8 -7 -7 -7 -7 -6 -6 -5 -4 -4 -4 -4 -4 -4 -3 -3 -3 --------- Run | Yrd Mat Min Exi Min Mat Gar Mat Fac Gar Fac Sto Fac Gar Fac Fac Was Fac Upp Upp Zhi Pro Res Arm Machines Accessed 56 | . 2 . . . 8 5 1 1 2 3 3 10 1 4 2 . 2 . . 9 . 1 2 Terminals 33 | . 2 . . . 7 5 1 . 2 3 2 4 1 3 1 . . . . . . . 2 Fabricators 4 | . . . . . . . . . . . . 3 . . . . . . . . . 1 . Repair Stations 2 | . . . . . . . . . . . . . . . 1 . 1 . . . . . . Recycling Units . | . . . . . . . . . . . . . . . . . . . . . . . . Scanalyzers 1 | . . . . . . . . . . . . 1 . . . . . . . . . . . Garrison Access 7 | . . . . . 1 . . 1 . . 1 2 . 1 . . 1 . . . . . . Total Hacks 141 | . 4 . . . 25 11 2 1 4 10 3 19 1 5 6 . 5 . . 38 . 2 5 Successful 79 | . 2 . . . 7 3 . 1 . 5 3 12 1 3 2 . 2 . . 38 . . . Failed 62 | . 2 . . . 18 8 2 . 4 5 . 7 . 2 4 . 3 . . . . 2 5 Catastrophic 13 | . . . . . 1 2 . . 2 1 . 1 . 1 . . . . . . . 1 4 Database Lockouts . | . . . . . . . . . . . . . . . . . . . . . . . . Manual 59 | . 4 . 1 . 23 . 2 . . 10 1 5 . 4 4 . . . . . . . 5 Terminals 76 | . 4 . . . 23 11 2 . 4 10 2 6 1 4 4 . . . . . . . 5 Fabricators 9 | . . . . . . . . . . . . 7 . . . . . . . . . 2 . Repair Stations 6 | . . . . . . . . . . . . . . . 2 . 4 . . . . . . Recycling Units . | . . . . . . . . . . . . . . . . . . . . . . . . Scanalyzers 3 | . . . . . . . . . . . . 3 . . . . . . . . . . . Garrison Access 9 | . . . . . 2 . . 1 . . 1 3 . 1 . . 1 . . . . . . Terminal Hacks 48 | . . . . . 1 3 . . . 2 2 1 1 . . . . . . 38 . . . Record 27 | . . . . . . . . . . . . 1 . . . . . . . 26 . . . Part Schematic 4 | . . . . . . . . . . . . . . . . . . . . 4 . . . Robot Analysis 4 | . . . . . . . . . . . . . . . . . . . . 4 . . . Prototype ID Bank 4 | . . . . . . . . . . . . . . . . . . . . 4 . . . Open Door 2 | . . . . . . 1 . . . . 1 . . . . . . . . . . . . Level Access Points 1 | . . . . . . . . . . . 1 . . . . . . . . . . . . Emergency Access Points 2 | . . . . . . 1 . . . . . . 1 . . . . . . . . . . Garrison Index 1 | . . . . . 1 . . . . . . . . . . . . . . . . . . Unreport Threat 2 | . . . . . . . . . . 2 . . . . . . . . . . . . . Garrison Registry 1 | . . . . . . 1 . . . . . . . . . . . . . . . . . Fabricator Hacks 3 | . . . . . . . . . . . . 3 . . . . . . . . . . . Load Schematic 1 | . . . . . . . . . . . . 1 . . . . . . . . . . . Build 2 | . . . . . . . . . . . . 2 . . . . . . . . . . . Repair Station Hacks 2 | . . . . . . . . . . . . . . . 1 . 1 . . . . . . Scan Component 2 | . . . . . . . . . . . . . . . 1 . 1 . . . . . . Recycling Unit Hacks . | . . . . . . . . . . . . . . . . . . . . . . . . Scanalyzer 2 | . . . . . . . . . . . . 2 . . . . . . . . . . . Insert Component 1 | . . . . . . . . . . . . 1 . . . . . . . . . . . Analyze 1 | . . . . . . . . . . . . 1 . . . . . . . . . . . Garrison Access Hacks 8 | . . . . . 1 . . 1 . . 1 3 . 1 . . 1 . . . . . . Unlock Access 3 | . . . . . 1 . . 1 . . . 1 . . . . . . . . . . . Seal Access 2 | . . . . . . . . . . . 1 1 . . . . . . . . . . . Coupler Status 3 | . . . . . . . . . . . . 1 . 1 . . 1 . . . . . . Unauthorized Hacks 16 | . 2 . . . 5 . . . . 3 . 3 . 2 1 . . . . . . . . Terminals 16 | . 2 . . . 5 . . . . 3 . 3 . 2 1 . . . . . . . . Botnet 16 | . 2 . . . 5 . . . . 3 . 3 . 2 1 . . . . . . . . Fabricators . | . . . . . . . . . . . . . . . . . . . . . . . . Repair Stations . | . . . . . . . . . . . . . . . . . . . . . . . . Recycling Units . | . . . . . . . . . . . . . . . . . . . . . . . . Scanalyzers . | . . . . . . . . . . . . . . . . . . . . . . . . Garrison Access . | . . . . . . . . . . . . . . . . . . . . . . . . Data Cores Recovered 2 | . . . . . 1 . . . . . . . . . 1 . . . . . . . . Used . | . . . . . . . . . . . . . . . . . . . . . . . . Hacking Detections 37 | . 2 . . . 6 5 1 . 2 3 . 8 . 4 2 . 1 . . . . 1 2 Full Trace Events 14 | . . . . . 3 3 . . 2 2 . 1 . . . . 1 . . . . 1 1 Feedback Events . | . . . . . . . . . . . . . . . . . . . . . . . . Feedback Blocked . | . . . . . . . . . . . . . . . . . . . . . . . . Robot Schematics Acquired . | . . . . . . . . . . . . . . . . . . . . . . . . Robots Built . | . . . . . . . . . . . . . . . . . . . . . . . . Authchips . | . . . . . . . . . . . . . . . . . . . . . . . . Time . | . . . . . . . . . . . . . . . . . . . . . . . . Total Robot Build Rating . | . . . . . . . . . . . . . . . . . . . . . . . . Part Schematics Acquired 5 | . . . . . . . . . . . . 1 . . . . . . . 4 . . . Parts Built 2 | . . . . . . . . . . . . 2 . . . . . . . . . . . Authchips . | . . . . . . . . . . . . . . . . . . . . . . . . Time 131 | . . . . . . . . . . . . 131 . . . . . . . . . . . Total Part Build Rating 9 | . . . . . . . . . . . . 9 . . . . . . . . . . . Parts Repaired . | . . . . . . . . . . . . . . . . . . . . . . . . Time . | . . . . . . . . . . . . . . . . . . . . . . . . Parts Recycled . | . . . . . . . . . . . . . . . . . . . . . . . . Recycled Matter . | . . . . . . . . . . . . . . . . . . . . . . . . Retrieved Matter . | . . . . . . . . . . . . . . . . . . . . . . . . Retrieved Components . | . . . . . . . . . . . . . . . . . . . . . . . . Parts Scanalyzed 1 | . . . . . . . . . . . . 1 . . . . . . . . . . . Part Schematics Acquired 1 | . . . . . . . . . . . . 1 . . . . . . . . . . . Parts Damaged . | . . . . . . . . . . . . . . . . . . . . . . . . Bothacking | -11 -10 -10 -10 -9 -8 -8 -8 -7 -7 -7 -7 -6 -6 -5 -4 -4 -4 -4 -4 -4 -3 -3 -3 ------------ Run | Yrd Mat Min Exi Min Mat Gar Mat Fac Gar Fac Sto Fac Gar Fac Fac Was Fac Upp Upp Zhi Pro Res Arm Used RIF Installer 5 | . . . . . . 2 . . 2 . . . 1 . . . . . . . . . . Watcher Feeds 1 | . . . . . . . . . 1 . . . . . . . . . . . . . . Structural Interface 1 | . . . . . . 1 . . . . . . . . . . . . . . . . . Program Shield 1 | . . . . . . . . . . . . . 1 . . . . . . . . . . Autoassimilate 1 | . . . . . . . . . 1 . . . . . . . . . . . . . . Robots Hacked 28 | . . . . . . . 1 2 10 . . 2 9 2 2 . . . . . . . . Non-combat 4 | . . . . . . . . 2 . . . . . 2 . . . . . . . . . Combat 24 | . . . . . . . 1 . 10 . . 2 9 . 2 . . . . . . . . Autoassimilated 2 | . . . . . . . . . . . . . 1 . 1 . . . . . . . . Robot Hacks Applied 26 | . . . . . . . 1 2 10 . . 2 8 2 1 . . . . . . . . no_distress 2 | . . . . . . . . . . . . . . 2 . . . . . . . . . find_chute 1 | . . . . . . . . 1 . . . . . . . . . . . . . . . ignore_parts 1 | . . . . . . . . 1 . . . . . . . . . . . . . . . overload_power 1 | . . . . . . . . . . . . . 1 . . . . . . . . . . amplify_resonance 8 | . . . . . . . 1 . 5 . . . 2 . . . . . . . . . . go_dormant 1 | . . . . . . . . . 1 . . . . . . . . . . . . . . overwrite_iff 1 | . . . . . . . . . 1 . . . . . . . . . . . . . . formatsys_high 11 | . . . . . . . . . 3 . . 2 5 . 1 . . . . . . . . Relay Couplers Released 34 | . . . . . . 7 . . 12 . . . 13 2 . . . . . . . . . Machine Destruction 34 | . . . . . . 7 . . 12 . . . 13 2 . . . . . . . . . Attached 20 | . . . . . . . 1 1 6 . . 2 9 . 1 . . . . . . . . Fabnet Peak Effective % . | . . . . . . . . . . . . . . . . . . . . . . . . Robots Rewired . | . . . . . . . . . . . . . . . . . . . . . . . . Allies Hacked . | . . . . . . . . . . . . . . . . . . . . . . . . Hacks Repelled . | . . . . . . . . . . . . . . . . . . . . . . . . Allies | -11 -10 -10 -10 -9 -8 -8 -8 -7 -7 -7 -7 -6 -6 -5 -4 -4 -4 -4 -4 -4 -3 -3 -3 -------- Run | Yrd Mat Min Exi Min Mat Gar Mat Fac Gar Fac Sto Fac Gar Fac Fac Was Fac Upp Upp Zhi Pro Res Arm Total Allies 15 | . . . . . . 1 . . 4 . . 2 6 . 2 . . . . . . . . Largest Group 2 | . . . . . . 1 . . 1 . . 2 2 2 2 . . . . . . . . Highest-Rated Group 112 | . . . . . . 39 . . 32 . . 58 64 64 112 . . . . . . . . Highest-Rated Ally 56 | . . . . . . 39 . . 32 . . 29 32 32 56 . . . . . . . . Total Orders 2 | . . . . . . . . . . . 1 . 1 . . . . . . . . . . AID 1 | . . . . . . . . . . . . . 1 . . . . . . . . . . EXPLORE 1 | . . . . . . . . . . . 1 . . . . . . . . . . . . Ally Attacks 105 | . . . . . . 4 . . 9 . . 7 64 7 14 . . . . . . . . Total Damage 2637 | . . . . . . 9 . . 223 . . 111 1549 284 461 . . . . . . . . Kills 20 | . . . . . . . . . 2 . . . 13 3 2 . . . . . . . . Allies Corrupted . | . . . . . . . . . . . . . . . . . . . . . . . . Allies Melted . | . . . . . . . . . . . . . . . . . . . . . . . . Intel | -11 -10 -10 -10 -9 -8 -8 -8 -7 -7 -7 -7 -6 -6 -5 -4 -4 -4 -4 -4 -4 -3 -3 -3 ------- Run | Yrd Mat Min Exi Min Mat Gar Mat Fac Gar Fac Sto Fac Gar Fac Fac Was Fac Upp Upp Zhi Pro Res Arm Robot Analysis Total 4 | . . . . . . . . . . . . . . . . . . . . 4 . . . Derelict Logs Recovered 3 | . . 1 . 1 . . . . . . . . . . . . . 1 . . . . . Drone Launches 16 | . . . . . . . . . . . 16 . . . . . . . . . . . . Drone Recoveries 2 | . . . . . . . . . . . 2 . . . . . . . . . . . . Exploration | -11 -10 -10 -10 -9 -8 -8 -8 -7 -7 -7 -7 -6 -6 -5 -4 -4 -4 -4 -4 -4 -3 -3 -3 ------------- Run | Yrd Mat Min Exi Min Mat Gar Mat Fac Gar Fac Sto Fac Gar Fac Fac Was Fac Upp Upp Zhi Pro Res Arm Turns Passed 18926 | 73 110 420 397 39 1036 2179 547 429 2873 1023 750 1347 2627 1516 936 109 257 586 402 416 517 250 87 Spaces Moved 9965 | 39 51 243 244 23 420 1110 183 206 1501 498 284 683 1274 728 364 151 414 413 226 189 244 304 173 Core 1157 | 7 . . . . . . . . . . . . . . 17 151 414 184 . . 17 194 173 Treads 8692 | 26 51 243 244 23 420 1110 183 206 1501 498 284 683 1274 728 347 . . 229 226 189 227 . . Legs 116 | 6 . . . . . . . . . . . . . . . . . . . . . 110 . Wheels . | . . . . . . . . . . . . . . . . . . . . . . . . Hover . | . . . . . . . . . . . . . . . . . . . . . . . . Flight . | . . . . . . . . . . . . . . . . . . . . . . . . Fastest Speed 50 | 50 160 160 160 160 160 160 160 160 152 160 160 160 160 175 50 50 50 50 166 170 50 50 50 Average Speed 154 | 145 160 160 160 160 163 167 194 179 157 160 160 160 173 175 172 54 50 122 166 216 197 76 50 Slowest Speed 270 | 200 160 160 160 160 245 245 240 240 240 160 160 160 250 270 250 200 50 250 170 250 250 120 50 Overloaded Moves . | . . . . . . . . . . . . . . . . . . . . . . . . Propulsion Burnouts . | . . . . . . . . . . . . . . . . . . . . . . . . Robots Hopped . | . . . . . . . . . . . . . . . . . . . . . . . . Cave-ins Triggered . | . . . . . . . . . . . . . . . . . . . . . . . . Teleports 1 | . . . . . . . . . . . . . . . . . . . . . 1 . . Exploration Rate (%) 37 | 4 16 46 62 8 43 94 16 7 85 13 63 15 98 23 11 77 9 60 20 62 40 13 14 Regions Visited 23 Branch Regions 9 Pre-discovered Areas 4 | . . 1 . . . . . . . . . . . . . . . . . 3 . . . Known Exits Taken 4 | . . . . . 1 . . 1 . . 1 1 . . . . . . . . . . . Unknown Exits Taken 14 | 1 1 1 1 1 . . 1 . . 1 . . . 1 . . 1 1 1 1 1 1 . Scrap Searched 7 | . . . . 1 . . . . . . . . . . . . . 5 . . 1 . . Spaces Dug 40 | . . . . . . . 3 3 . . 3 17 . 1 . . 4 5 4 . . . . Terrain Destroyed 689 | . . . . . 19 47 3 3 30 22 41 17 5 67 118 131 4 157 25 . . . . Melee 39 | . . . . . . . 3 3 . . 3 17 . . . . 4 5 4 . . . . Projectile 138 | . . . . . 19 2 . . 30 14 10 . 5 27 31 . . . . . . . . AOE 512 | . . . . . . 45 . . . 8 28 . . 40 87 131 . 152 21 . . . . Terrain Rammed . | . . . . . . . . . . . . . . . . . . . . . . . . Walls Destroyed . | . . . . . . . . . . . . . . . . . . . . . . . . Machines Disabled . | . . . . . . . . . . . . . . . . . . . . . . . . Actions | -11 -10 -10 -10 -9 -8 -8 -8 -7 -7 -7 -7 -6 -6 -5 -4 -4 -4 -4 -4 -4 -3 -3 -3 --------- Run | Yrd Mat Min Exi Min Mat Gar Mat Fac Gar Fac Sto Fac Gar Fac Fac Was Fac Upp Upp Zhi Pro Res Arm Total 12330 | 52 66 256 250 25 630 1312 365 241 1825 663 472 848 1540 909 582 170 457 459 240 195 280 320 173 Wait 1037 | . 3 2 . . 104 68 167 . 125 102 90 66 53 100 116 . 36 1 4 . . . . Move 9945 | 38 50 242 243 22 420 1109 182 206 1500 497 283 682 1273 727 364 150 413 412 225 188 243 303 173 Hop . | . . . . . . . . . . . . . . . . . . . . . . . . Pick Up 150 | 4 1 1 . 3 17 26 2 4 22 5 7 10 22 3 5 3 1 2 . 1 11 . . Fast Attach 140 | 8 1 . 1 . 7 5 1 4 15 14 10 7 15 15 5 2 1 12 2 5 3 7 . Attach 94 | . . 1 . . 5 19 1 3 12 1 8 4 13 1 11 4 1 5 . . 4 1 . Detach 21 | 2 . . . . 1 . . . 2 . 2 . 2 2 2 2 . 1 1 . 2 2 . Swap 69 | . . . 1 . 1 5 1 7 12 1 3 12 18 2 5 . . 1 . . . . . Drop 167 | . 3 . 1 . 11 14 3 3 26 14 8 12 27 12 12 2 1 1 . 1 10 6 . Fire 604 | . 8 10 . . 64 66 4 8 109 29 40 20 112 47 62 7 . 15 3 . . . . Melee 77 | . . . . . . . 4 6 . . 14 33 . . . . 4 9 5 . 2 . . Ram . | . . . . . . . . . . . . . . . . . . . . . . . . Kick . | . . . . . . . . . . . . . . . . . . . . . . . . Crush . | . . . . . . . . . . . . . . . . . . . . . . . . Escape Stasis . | . . . . . . . . . . . . . . . . . . . . . . . . Rewire 13 | . . . 4 . . . . . 2 . . 2 5 . . . . . . . . . . Trap 6 | . . . . . . . . . . . . . . . . . . . . . 5 1 . Miscellaneous 7 | . . . . . . . . . . . 7 . . . . . . . . . . . . Route ------- -11/Scrapyard -10/Materials -10/Mines -10/Exiles -9/Mines -8/Materials -8/Garrison (discovered 3 exits: *Mat x3) -8/Materials -7/Factory -7/Garrison (discovered 4 exits: *Fac x4) -7/Factory -7/Storage -6/Factory (discovered 2 exits: [*Ext] / Gar) -6/Garrison (discovered 4 exits: *Fac x3 / [*Fac]) -5/Factory -4/Factory -4/Waste -4/Factory -4/Upper Caves -4/Upper Caves -4/Zhirov -3/Proximity Caves -3/Research -3/Armory History --------- Turn | Location | Event 28 | -11/Scrapyard | Discovered new exit (range 15) 74 | -11/Scrapyard | Entered Materials 133 | -10/Materials | Discovered new exit (range 12) 184 | -10/Materials | Entered Mines 185 | -10/Mines | Assembled infested the area 217 | -10/Mines | Met 8R-AWN 231 | -10/Mines | Learned location of Mines (-9) 279 | -10/Mines | A weapon hastily lodged in a ceiling crevice suddenly fell to the ground 302 | -10/Mines | Build established: Mutant 575 | -10/Mines | Discovered new exit (range 5) 604 | -10/Mines | Entered Exiles 644 | -10/Exiles | Welcomed by 8R-AWN 672 | -10/Exiles | Met EX-HEX 728 | -10/Exiles | Met EX-BIN 748 | -10/Exiles | Aligned with FarCom system 749 | -10/Exiles | Given EX-Vault access code 788 | -10/Exiles | Opened EX-Vault 796 | -10/Exiles | Found Prototype Processor 796 | -10/Exiles | Identified Modified TNC 829 | -10/Exiles | Warned to stay clear of 0b10 Research branches 874 | -10/Exiles | Met EX-DEC 978 | -10/Exiles | Discovered new exit (range 15) 1001 | -10/Exiles | Left Exiles lab with Modified TNC 1001 | -10/Exiles | Entered Mines 1014 | -9/Mines | Learned Materials terminal intel 1019 | -9/Mines | Discovered new exit (range 9) 1040 | -9/Mines | Entered Materials 1040 | -8/Materials | Evolved 4 slots: Propulsion x1, Utility x2, Weapon x1 1041 | -8/Materials | Loaded intel: 11 terminal locations 1481 | -8/Materials | Destroyed 8 combat bots 1734 | -8/Materials | Build established: Skirmisher 1800 | -8/Materials | Garrison activated, responded to threat 2076 | -8/Materials | Identified exit to Garrison 2076 | -8/Materials | Entered Garrison 2288 | -8/Garrison | Triggered checkpoint 2398 | -8/Garrison | Triggered checkpoint 2450 | -8/Garrison | Core integrity fell below 50% 2494 | -8/Garrison | Lost 3 parts (2n1w) 2647 | -8/Garrison | Discovered new exit (range 10) 2702 | -8/Garrison | Triggered checkpoint 2766 | -8/Garrison | Build established: Scavenger-Skirmisher 2822 | -8/Garrison | Triggered checkpoint 2876 | -8/Garrison | Discovered new exit (range 32) 2876 | -8/Garrison | Discovered new exit (range 34) 2876 | -8/Garrison | Discovered new exit (range 56) 2988 | -8/Garrison | Rescued a captive Derelict 3062 | -8/Garrison | Triggered checkpoint 3239 | -8/Garrison | Installed Relay Interface Framework 3268 | -8/Garrison | Triggered checkpoint 3293 | -8/Garrison | Phase Generator disabled 3441 | -8/Garrison | Expanded RIF knowledge: Structural Interface 3758 | -8/Garrison | Triggered checkpoint 3761 | -8/Garrison | Spotted B-75 Beast 3773 | -8/Garrison | Build established: Scavenger-Tank 3795 | -8/Garrison | Core integrity fell below 20% 3815 | -8/Garrison | Destroyed B-75 Beast 3841 | -8/Garrison | Lost 4 parts (1p1n2w) 3983 | -8/Garrison | Garrison Relay disabled 4083 | -8/Garrison | Build established: Scavenger-Skirmisher 4200 | -8/Garrison | Garrison Relay disabled 4255 | -8/Garrison | Entered Materials 4514 | -8/Materials | Build established: Bothacker-Tank 4655 | -8/Materials | First assault squad dispatched 4778 | -8/Materials | Discovered new exit (range 16) 4802 | -8/Materials | Entered Factory 4802 | -7/Factory | Evolved 2 slots: Utility x2 5231 | -7/Factory | Identified exit to Garrison 5231 | -7/Factory | Entered Garrison 5295 | -7/Garrison | Spotted B-75 Beast 5440 | -7/Garrison | Destroyed B-75 Beast 5663 | -7/Garrison | Triggered checkpoint 5715 | -7/Garrison | Discovered new exit (range 3) 5877 | -7/Garrison | Triggered checkpoint 6029 | -7/Garrison | Triggered checkpoint 6052 | -7/Garrison | Garrison Relay disabled 6055 | -7/Garrison | Build established: Tank 6299 | -7/Garrison | Garrison Relay disabled 6373 | -7/Garrison | Build established: Bothacker-Tank 6375 | -7/Garrison | Discovered new exit (range 10) 6434 | -7/Garrison | Garrison Relay disabled 6447 | -7/Garrison | Triggered checkpoint 6781 | -7/Garrison | Triggered checkpoint 6791 | -7/Garrison | Triggered checkpoint 6905 | -7/Garrison | Triggered checkpoint 7040 | -7/Garrison | Discovered new exit (range 3) 7076 | -7/Garrison | Phase Generator disabled 7154 | -7/Garrison | Build established: Scavenger-Tank 7254 | -7/Garrison | Discovered new exit (range 10) 7379 | -7/Garrison | Lost 6 parts (2n3u1w) 7480 | -7/Garrison | Expanded RIF knowledge: Watcher Feeds 7514 | -7/Garrison | Core integrity fell below 50% 7550 | -7/Garrison | Expanded RIF knowledge: Autoassimilate 7591 | -7/Garrison | Build established: Skirmisher 7901 | -7/Garrison | Triggered checkpoint 7973 | -7/Garrison | Build established: Scavenger-Skirmisher 8104 | -7/Garrison | Entered Factory 8442 | -7/Factory | Build established: Skirmisher 9082 | -7/Factory | Discovered new exit (range 5) 9127 | -7/Factory | Entered Storage 9302 | -7/Storage | Lost 11 allies 9305 | -7/Storage | Garrison activated, responded to threat 9382 | -7/Storage | Destroyed 9 combat bots 9472 | -7/Storage | Core integrity fell below 20% 9479 | -7/Storage | Garrison activated, responded to threat 9515 | -7/Storage | Lost 5 parts (1n2u2w) 9592 | -7/Storage | Identified exit to Factory 9805 | -7/Storage | Build established: Mutant 9877 | -7/Storage | Entered Factory 9877 | -6/Factory | Evolved 2 slots: Propulsion x1, Utility x1 10487 | -6/Factory | Fabricated Hpw. Shock Rifle (x1) 10850 | -6/Factory | Fabricated Hrd. Heavy Armor Plating? 11003 | -6/Factory | Discovered new exit (range 15) 11223 | -6/Factory | Identified exit to Garrison 11224 | -6/Factory | Entered Garrison 11224 | -6/Garrison | Accompanied by 1 ally 11234 | -6/Garrison | Triggered checkpoint 11263 | -6/Garrison | Discovered new exit (range 3) 11327 | -6/Garrison | Garrison Relay disabled 11495 | -6/Garrison | Build established: Scavenger-Skirmisher 11668 | -6/Garrison | Triggered checkpoint 11737 | -6/Garrison | Destroyed 7 combat bots 12033 | -6/Garrison | Build established: Tank 12296 | -6/Garrison | Triggered checkpoint 12377 | -6/Garrison | Lost 3 parts (3u) 12624 | -6/Garrison | Discovered new exit (range 13) 12826 | -6/Garrison | Triggered checkpoint 12880 | -6/Garrison | Garrison Relay disabled 12930 | -6/Garrison | Triggered checkpoint 13084 | -6/Garrison | Triggered checkpoint 13216 | -6/Garrison | Triggered checkpoint 13259 | -6/Garrison | Garrison Relay disabled 13298 | -6/Garrison | Discovered new exit (range 10) 13440 | -6/Garrison | Expanded RIF knowledge: Program Shield 13514 | -6/Garrison | Discovered new exit (range 2) 13722 | -6/Garrison | Triggered checkpoint 13801 | -6/Garrison | Garrison Relay disabled 13851 | -6/Garrison | Entered Factory 13851 | -5/Factory | Accompanied by 2 allies 13851 | -5/Factory | Evolved 2 slots: Power x1, Utility x1 14164 | -5/Factory | Build established: Bothacker-Tank 14751 | -5/Factory | First assault squad dispatched 14796 | -5/Factory | Discovered new exit (range 15) 14938 | -5/Factory | Build established: Tank 15367 | -5/Factory | Entered another Factory area 15367 | -4/Factory | Evolved 2 slots: Utility x2 15867 | -4/Factory | First assault squad dispatched 16204 | -4/Factory | System corruption reached 10% 16272 | -4/Factory | Lost 13 parts (2p1n7u3w) 16303 | -4/Factory | Sucked down chute 16303 | -4/Factory | Entered Waste 16325 | -4/Waste | Spotted C-40 Crusher 16325 | -4/Waste | Spotted C-40 Crusher 16329 | -4/Waste | Lost 5 parts (2n2u1w) 16332 | -4/Waste | Spotted C-40 Crusher 16332 | -4/Waste | Destroyed C-40 Crusher 16353 | -4/Waste | Destroyed C-40 Crusher 16366 | -4/Waste | Spotted C-40 Crusher 16367 | -4/Waste | Spotted C-40 Crusher 16392 | -4/Waste | Discovered new exit (range 13) 16392 | -4/Waste | Spotted C-40 Crusher 16412 | -4/Waste | Entered Factory 16602 | -4/Factory | Build established: Mutant 16648 | -4/Factory | Discovered new exit (range 10) 16669 | -4/Factory | Entered Upper Caves 16926 | -4/Upper Caves | Attracted the attention of an 0b10 checkpoint 16986 | -4/Upper Caves | Lost 3 parts (1p1n1w) 17148 | -4/Upper Caves | Build established: Derelict-Mutant 17183 | -4/Upper Caves | Attracted the attention of an 0b10 outpost 17214 | -4/Upper Caves | Destroyed 9 combat bots 17232 | -4/Upper Caves | Discovered new exit (range 15) 17245 | -4/Upper Caves | Lost 3 parts (1p1u1w) 17255 | -4/Upper Caves | Entered another Upper Caves area 17255 | -4/Upper Caves | Discovered new exit (range 13) 17584 | -4/Upper Caves | Core integrity fell below 50% 17657 | -4/Upper Caves | Entered Zhirov 17657 | -4/Zhirov | Discovered new exit (range 3) 17688 | -4/Zhirov | Met Zhirov 17746 | -4/Zhirov | Found Alien Artifact 17771 | -4/Zhirov | Found Alien Artifact 17771 | -4/Zhirov | Identified Integrated Reactor 17771 | -4/Zhirov | Installed Integrated Reactor, increased core energy generation (+10) 17991 | -4/Zhirov | Learned location of Quarantine (-3) 17991 | -4/Zhirov | Learned location of Testing (-2) 17991 | -4/Zhirov | Learned location of Command (-1) 18006 | -4/Zhirov | Zhirov requested help retrieving the SGEMP Prototype 18073 | -4/Zhirov | Entered Proximity Caves 18217 | -3/Proximity Caves | Spotter reported a threat 18349 | -3/Proximity Caves | Spotter reported a threat 18366 | -3/Proximity Caves | Spotter reported a threat 18371 | -3/Proximity Caves | Identified Transdimensional Reconstructor 18371 | -3/Proximity Caves | Warped through subspace 18405 | -3/Proximity Caves | Core integrity fell below 20% 18415 | -3/Proximity Caves | Lost 6 parts (1p3n2u) 18419 | -3/Proximity Caves | Spotter reported a threat 18508 | -3/Proximity Caves | Spotter reported a threat 18561 | -3/Proximity Caves | Spotter reported a threat 18569 | -3/Proximity Caves | Attracted the attention of an 0b10 checkpoint 18587 | -3/Proximity Caves | Discovered new exit (range 6) 18590 | -3/Proximity Caves | Entered Research 18590 | -3/Research | Evolved 2 slots: Propulsion x2 18613 | -3/Research | Lost 5 parts (2p2n1u) 18650 | -3/Research | Build established: Mutant 18708 | -3/Research | Spotted B-86 Titan 18799 | -3/Research | Core integrity fell below 50% 18828 | -3/Research | Lost 3 parts (3u) 18829 | -3/Research | Discovered new exit (range 16) 18832 | -3/Research | Core integrity fell below 20% 18840 | -3/Research | Entered Armory 18927 | -3/Armory | Destroyed by Y-72 Warden with Railgun Last Messages --------------- 18815_ Slug penetrates Wall. 18815_ Slug penetrates Quantum Separator. 18818_ W-44 Eye sends out distress signal. 18829_ EXIT=FOUND 18831_ Penetrated by Slug. 18837_ Slug penetrates Wall. 18840_ ALERT: Rogue bot located, Programmers report to Research Zone 4B. LOCATION=UNKNOWN GOAL=ESCAPE 18840_ Receiving FarCom transmissions... 18846_ RIF reveals location of hidden door. 18894_ Connecting with Terminal... 18894_ Current location identified: Armory 18894_ ALERT: Suspicious activity at Terminal A008. Dispatching Investigation squad. 18899_ RIF reveals location of hidden door. 18899_ O-16 Technician: "IFF HANDSHAKE FAILED. SECURING TERMINAL." 18905_ Connecting with Terminal... 18915_ RIF reveals location of hidden door. 18921_ Penetrated by Slug. Map ----- +----------------------------------------------------+ | | | | | | | | | | | | | | | | | | | | | | | | | | | | | | | | | ?????????????????????????????????????????????????? | | ????????????####?????????????????????????????????? | | ????????????#""#?????????????????????????????????? | | ??###########T"#########?????????????????????????? | | ### #?????????????????????????? | | #?????????????????????????? | | #?????????????????????????? | | #?????????????????????????? | | #### "????????????????????? | | #### @/ "????????????????????? | | # w # "????????????????????? | | + #??????????????????????? | | ##+############ o #??????????????????????? | | # #????## Y #????????#?????????????? | | # # ] # ###### #?????????????? | | # " # + #?????????????? | | # "" + """ #### #### #?????????????? | | # "" # """????# #####+#####??????????? | | # "" # ""?????# + T #??????????? | | # "" # ???????######## #????????### | | # " #???????????????# ! = #????????# | | # #???????????????#! | #????????# | | #############????????????######+##+############# | | ?????????????????????????# + + | | ?????????????????????????# ########## | | ?????????????????????????# """ #????????# | | ?????????????????????????# ######???# | | ?????????????????????????# """ # #???# | | ?????????????????????????# """ + #???# | | ?????????????????????????# # #???# | | ?????????????????????????# """ # #???# | | ?????????????????????????# ## ##???# | | ?????????????????????????# ## #????### | | ?????????????????????????# ## #??????? | +----------------------------------------------------+ Best States ------------- Heat Dissipation 74 Coolant Potential 100 Energy Generation 56 Energy Capacity 580 Matter Stores 300 Matter Capacity 700 Sight Range 16 Terrain Scan Density 135 Jamming Range 14 Power Amplification 30 Corruption Block 14 Armor Coverage 1650 Resistance: KI 30 Resistance: TH 25 Resistance: EM 20 Propulsion Shielding 33 Weapon Shielding 90 Weapon Cycling 25 Evasion (%) 55 Targeting Accuracy 12 Melee Accuracy 5 Core Analysis 6 Recoil Reduction 4 Kinecelleration 40 Salvage Targeting 2 Offensive Hacking 14 Relay Coupler Types 2 Relay Coupler Value 61 Item Schematics ----------------- Hrd. Heavy Armor Plating | -6/Factory | Scanalyzed Assault Drone Bay | -4/Zhirov | Free Exp. Heat Sink | -4/Zhirov | Free Exp. Optical Array | -4/Zhirov | Free Imp. Arc Thrower | -4/Zhirov | Free Robot Schematics ------------------ None Fabricated ------------ Hpw. Shock Rifle | x1 | -6/Factory | Preloaded Hrd. Heavy Armor Plating | x1 | -6/Factory Alien Tech Used ----------------- Integrated Reactor Transdimensional Reconstructor Achievements -------------- Can't Touch This Oh No You Don't! Turtlemind Challenges ------------ None Game ------ Seed FrostNeutrinoReplicator Manual? 0 Play Time 03:03:41 Cumulative 73.0 hours Start 2024.05.01 @ 16:48:45 End 2024.05.01 @ 21:12:41 Sessions 7 Manual Loads 0 Difficulty Rogue Special Mode None Game No. 106 Rogue 101 Adventurer 5 Explorer 0 Win Type - Total 2 Types 1/0/0/1/0/0/0/0/0 Lore% 40 Gallery% 60 Achievement% 46 Wizard Run 0 Options --------- Layout 0 ASCII 0 Keyboard 0 Movement Mouse Keybinds 0 Fullscreen 1 Font 24/Smallcaps Map View 76x50 Zoom Use 7% Tactical HUD 1 Map Filters NONE Filters NONE Steam 1 RUN: 0a45d79e-b6e6-460a-a551-b32d04a710e9